fUST/lending_fUST_20250628
["ID","MTS","AMOUNT","RATE_DAILY","PERIOD"]
[368258532,1751077842476,-460.0,0.0002,2]
[368258533,1751077842485,-460.0,0.0002,2]
[368258534,1751077842495,-460.0,0.0002,2]
[368258535,1751077842504,-684.07,0.0002,2]
[368258536,1751077842513,-460.0,0.0002,2]
[368258537,1751077842524,-686.94,0.0002,2]
[368258538,1751077842535,-460.0,0.0002,2]
[368258540,1751077842544,-460.0,0.0002,2]
[368258541,1751077842553,-750.65,0.0002,2]
[368258543,1751077842562,-460.0,0.0002,2]
[368258544,1751077842571,-460.0,0.0002,2]
[368258545,1751077842580,-833.48,0.0002,2]
[368258546,1751077842589,-460.0,0.0002,2]
[368258547,1751077842598,-460.0,0.0002,2]
[368258548,1751077842608,-851.08,0.0002,2]
[368258549,1751077842617,-460.0,0.0002,2]
[368258550,1751077842626,-5317.56613646,0.00020141,2]
[368258551,1751077842635,-286.148134,0.00020187,2]
[368258552,1751077842645,-460.0,0.00020273,2]
[368258554,1751077842655,-460.0,0.00020273,2]
[368258556,1751077842664,-460.0,0.00020273,2]
[368258558,1751077842673,-397.72425249,0.00020273,2]
[368258559,1751077842682,-864.73,0.00020273,2]
[368258560,1751077842691,-480.48,0.00020273,2]
[368258561,1751077842700,-460.0,0.00020273,2]
[368258562,1751077842709,-1050.91,0.00020273,2]
[368258563,1751077842719,-950.9,0.00020273,2]
[368258564,1751077842728,-619.04,0.00020273,2]
[368258565,1751077842738,-460.0,0.00020273,2]
[368258566,1751077842747,-460.0,0.00020273,2]
[368258567,1751077842758,-460.0,0.00020273,2]
[368258568,1751077842767,-460.0,0.00020273,2]
[368258569,1751077842777,-1094.57,0.00020273,2]
[368258570,1751077842785,-830.26,0.00020273,2]
[368258571,1751077842795,-1073.32,0.00020273,2]
[368258572,1751077842804,-801.69,0.00020273,2]
[368258573,1751077842813,-2284.18,0.00020273,2]
[368258574,1751077842822,-460.0,0.00020273,2]
[368258575,1751077842832,-460.0,0.00020273,2]
[368258576,1751077842843,-460.0,0.00020273,2]
[368258577,1751077842854,-592.17,0.00020273,2]
[368258579,1751077842863,-460.0,0.00020273,2]
[368258581,1751077842872,-460.0,0.00020273,2]
[368258583,1751077842882,-460.0,0.00020273,2]
[368258585,1751077842890,-460.0,0.00020273,2]
[368258587,1751077842900,-460.0,0.00020273,2]
[368258589,1751077842909,-743.7,0.00020273,2]
[368258591,1751077842919,-460.0,0.00020273,2]
[368258592,1751077842928,-2148.11,0.00020273,2]
[368258594,1751077842937,-460.0,0.00020273,2]
[368258596,1751077842946,-447.92,0.00020273,2]
[368258598,1751077842956,-460.0,0.00020273,2]
[368258600,1751077842964,-684.07,0.00020273,2]
[368258602,1751077842974,-460.0,0.00020273,2]
[368258604,1751077842984,-686.94,0.00020273,2]
[368258606,1751077842993,-460.0,0.00020273,2]
[368258608,1751077843002,-750.65,0.00020273,2]
[368258610,1751077843012,-460.0,0.00020273,2]
[368258612,1751077843021,-460.0,0.00020273,2]
[368258614,1751077843031,-833.48,0.00020273,2]
[368258616,1751077843040,-460.0,0.00020273,2]
[368258618,1751077843049,-851.08,0.00020273,2]
[368258620,1751077843058,-420.0,0.00020304,2]
[368258622,1751077843068,-153.0,0.00020329,2]
[368258624,1751077843077,-160.0,0.00020336,2]
[368258626,1751077843087,-160.0,0.00020336,2]
[368258628,1751077843096,-160.0,0.00020336,2]
[368258630,1751077843105,-214.95397287,0.00020336,2]
[368258632,1751077843115,-230.28494567,0.00020336,2]
[368258634,1751077843124,-847.18566335,0.00020336,2]
[368258636,1751077843134,-837.06984471,0.00020336,2]
[368258638,1751077843143,-160.0,0.00020336,2]
[368258640,1751077843153,-213.78848551,0.00020338,2]
[368258642,1751077843162,-5317.56613646,0.00020383,3]
[368258644,1751077843172,-500.0,0.00020547,14]
[368258646,1751077843181,-602.50444261,0.00020547,2]
[368258648,1751077843190,-460.0,0.00020547,2]
[368258650,1751077843198,-460.0,0.00020547,2]
[368258652,1751077843207,-864.73,0.00020547,2]
[368258654,1751077843219,-480.48,0.00020547,2]
[368258656,1751077843228,-460.0,0.00020547,2]
[368258658,1751077843237,-1050.91,0.00020547,2]
[368258660,1751077843245,-950.9,0.00020547,2]
[368258662,1751077843254,-619.04,0.00020547,2]
[368258664,1751077843263,-460.0,0.00020547,2]
[368258665,1751077843272,-460.0,0.00020547,2]
[368258667,1751077843281,-460.0,0.00020547,2]
[368258669,1751077843290,-460.0,0.00020547,2]
[368258671,1751077843299,-1094.57,0.00020547,2]
[368258673,1751077843308,-830.26,0.00020547,2]
[368258675,1751077843317,-1073.32,0.00020547,2]
[368258677,1751077843326,-801.69,0.00020547,2]
[368258679,1751077843336,-2284.18,0.00020547,2]
[368258681,1751077843345,-460.0,0.00020547,2]
[368258682,1751077843354,-460.0,0.00020547,2]
[368258683,1751077843364,-592.17,0.00020547,2]
[368258684,1751077843373,-180.73902664,0.00020547,2]
[368258685,1751077843383,-460.0,0.00020547,2]
[368258686,1751077843392,-460.0,0.00020547,2]
[368258687,1751077843401,-333.19221272,0.00020547,2]
[368258689,1751077843410,-460.0,0.00020547,2]
[368258690,1751077843418,-743.7,0.00020547,2]
[368258692,1751077843428,-460.0,0.00020547,2]
[368258694,1751077843436,-2148.11,0.00020547,2]
[368258696,1751077843446,-460.0,0.00020547,2]
[368258698,1751077843456,-684.07,0.00020547,2]
[368258701,1751077843469,-460.0,0.00020547,2]
[368258703,1751077843479,-686.94,0.00020547,2]
[368258705,1751077843488,-460.0,0.00020547,2]
[368258707,1751077843497,-750.65,0.00020547,2]
[368258709,1751077843506,-460.0,0.00020547,2]
[368258711,1751077843515,-460.0,0.00020547,2]
[368258713,1751077843525,-833.48,0.00020547,2]
[368258715,1751077843534,-446.84,0.00020547,2]
[368258717,1751077843544,-851.08,0.00020547,2]
[368258719,1751077843553,-213.78848551,0.00020624,3]
[368258721,1751077843562,-847.18566335,0.00020624,3]
[368258723,1751077843572,-5317.56613646,0.00020624,3]
[368258725,1751077843582,-972.35581947,0.00020625,2]
[368258727,1751077843592,-431.40476906,0.000207,2]
[368258729,1751077843601,-207.4,0.0002081,2]
[368258731,1751077843611,-460.0,0.00020821,2]
[368258733,1751077843620,-460.0,0.00020821,2]
[368258735,1751077843629,-864.73,0.00020821,2]
[368258737,1751077843639,-480.48,0.00020821,2]
[368258739,1751077843648,-460.0,0.00020821,2]
[368258741,1751077843657,-1050.91,0.00020821,2]
[368258743,1751077843667,-950.9,0.00020821,2]
[368258748,1751077843706,-619.04,0.00020821,2]
[368258750,1751077843717,-460.0,0.00020821,2]
[368258752,1751077843726,-460.0,0.00020821,2]
[368258754,1751077843735,-392.4682196,0.00020821,2]
[368258756,1751077843744,-460.0,0.00020821,2]
[368258758,1751077843754,-1094.57,0.00020821,2]
[368258760,1751077843763,-830.26,0.00020821,2]
[368258762,1751077843773,-1073.32,0.00020821,2]
[368258764,1751077843782,-801.69,0.00020821,2]
[368258766,1751077843791,-2284.18,0.00020821,2]
[368258768,1751077843800,-460.0,0.00020821,2]
[368258770,1751077843810,-460.0,0.00020821,2]
[368258772,1751077843819,-592.17,0.00020821,2]
[368258774,1751077843828,-460.0,0.00020821,2]
[368258776,1751077843837,-460.0,0.00020821,2]
[368258778,1751077843846,-460.0,0.00020821,2]
[368258780,1751077843856,-743.7,0.00020821,2]
[368258782,1751077843865,-460.0,0.00020821,2]
[368258784,1751077843874,-2148.11,0.00020821,2]
[368258786,1751077843883,-460.0,0.00020821,2]
[368258788,1751077843893,-684.07,0.00020821,2]
[368258790,1751077843903,-460.0,0.00020821,2]
[368258792,1751077843913,-686.94,0.00020821,2]
[368258794,1751077843922,-460.0,0.00020821,2]
[368258796,1751077843931,-750.65,0.00020821,2]
[368258798,1751077843940,-460.0,0.00020821,2]
[368258800,1751077843950,-460.0,0.00020821,2]
[368258801,1751077843959,-833.48,0.00020821,2]
[368258802,1751077843968,-851.08,0.00020821,2]
[368258803,1751077843978,-5317.56613646,0.00020866,4]
[368258804,1751077843988,-432.2,0.00020932,4]
[368258805,1751077843998,-500.0,0.00020958,15]
[368258806,1751077844007,-18803.49168301,0.00021,2]
[368258807,1751077844016,-269.1667008,0.00021,2]
[368258809,1751077844026,-5209.47194379,0.00021,2]
[368258811,1751077844035,-201.33996909,0.00021,2]
[368258812,1751077844044,-460.0,0.00021095,2]
[368258813,1751077844053,-460.0,0.00021095,2]
[368258814,1751077844063,-864.73,0.00021095,2]
[368258815,1751077844072,-480.48,0.00021095,2]
[368258816,1751077844081,-460.0,0.00021095,2]
[368258817,1751077844093,-1050.91,0.00021095,2]
[368258818,1751077844103,-950.9,0.00021095,2]
[368258819,1751077844112,-619.04,0.00021095,2]
[368258820,1751077844122,-460.0,0.00021095,2]
[368258821,1751077844131,-460.0,0.00021095,2]
[368258822,1751077844140,-460.0,0.00021095,2]
[368258823,1751077844150,-1094.57,0.00021095,2]
[368258824,1751077844160,-830.26,0.00021095,2]
[368258825,1751077844169,-1073.32,0.00021095,2]
[368258826,1751077844179,-801.69,0.00021095,2]
[368258827,1751077844189,-2284.18,0.00021095,2]
[368258828,1751077844198,-460.0,0.00021095,2]
[368258829,1751077844207,-460.0,0.00021095,2]
[368258830,1751077844220,-592.17,0.00021095,2]
[368258831,1751077844231,-460.0,0.00021095,2]
[368258832,1751077844240,-460.0,0.00021095,2]
[368258833,1751077844250,-460.0,0.00021095,2]
[368258834,1751077844259,-743.7,0.00021095,2]
[368258835,1751077844268,-460.0,0.00021095,2]
[368258836,1751077844277,-2148.11,0.00021095,2]
[368258837,1751077844286,-460.0,0.00021095,2]
[368258838,1751077844296,-684.07,0.00021095,2]
[368258839,1751077844307,-460.0,0.00021095,2]
[368258840,1751077844316,-686.94,0.00021095,2]
[368258841,1751077844326,-750.65,0.00021095,2]
[368258842,1751077844335,-460.0,0.00021095,2]
[368258843,1751077844344,-833.48,0.00021095,2]
[368258844,1751077844354,-851.08,0.00021095,2]
[368258845,1751077844363,-354.8312648,0.00021178,2]
[368258846,1751077844372,-575.118961,0.00021178,2]
[368258847,1751077844381,-153.0,0.00021178,2]
[368258848,1751077844390,-306.0,0.00021178,2]
[368258849,1751077844399,-153.0,0.00021178,2]
[368258850,1751077844408,-306.0,0.00021178,2]
[368258851,1751077844418,-575.118961,0.00021178,2]
[368258852,1751077844427,-153.0,0.00021178,2]
[368258853,1751077844436,-575.118961,0.00021178,2]
[368258854,1751077844445,-177.4788171,0.00021178,2]
[368258855,1751077844454,-153.0,0.00021178,2]
[368258856,1751077844463,-575.118961,0.00021178,2]
[368258857,1751077844473,-432.2,0.00021273,4]
[368258858,1751077844482,-972.35581947,0.0002135,2]
[368258859,1751077844491,-500.0,0.00021369,16]
[368258860,1751077844501,-460.0,0.00021369,2]
[368258861,1751077844510,-460.0,0.00021369,2]
[368258862,1751077844520,-864.73,0.00021369,2]
[368258863,1751077844529,-460.0,0.00021369,2]
[368258864,1751077844539,-480.48,0.00021369,2]
[368258865,1751077844548,-1050.91,0.00021369,2]
[368258866,1751077844558,-950.9,0.00021369,2]
[368258867,1751077844567,-619.04,0.00021369,2]
[368258868,1751077844577,-460.0,0.00021369,2]
[368258869,1751077844587,-549.12465872,0.00021369,2]
[368258870,1751077844597,-460.0,0.00021369,2]
[368258871,1751077844606,-1094.57,0.00021369,2]
[368258872,1751077844616,-830.26,0.00021369,2]
[368258873,1751077844625,-1073.32,0.00021369,2]
[368258874,1751077844634,-801.69,0.00021369,2]
[368258875,1751077844643,-2284.18,0.00021369,2]
[368258876,1751077844652,-460.0,0.00021369,2]
[368258877,1751077844662,-460.0,0.00021369,2]
[368258878,1751077844671,-592.17,0.00021369,2]
[368258879,1751077844680,-460.0,0.00021369,2]
[368258880,1751077844690,-460.0,0.00021369,2]
[368258881,1751077844699,-460.0,0.00021369,2]
[368258882,1751077844708,-743.7,0.00021369,2]
[368258883,1751077844717,-460.0,0.00021369,2]
[368258884,1751077844728,-2148.11,0.00021369,2]
[368258885,1751077844737,-205.02085441,0.00021369,2]
[368258886,1751077844747,-684.07,0.00021369,2]
[368258887,1751077844758,-556.07706744,0.00021369,2]
[368258888,1751077844768,-686.94,0.00021369,2]
[368258889,1751077844777,-750.65,0.00021369,2]
[368258890,1751077844786,-460.0,0.00021369,2]
[368258891,1751077844795,-833.48,0.00021369,2]
[368258892,1751077844804,-851.08,0.00021369,2]
[368258893,1751077844814,-548.246,0.00021379,2]
[368258894,1751077844823,-2395.0,0.00021612,2]
[368258895,1751077844832,-359220.04560639,0.00021613,2]
[368259044,1751078079302,154.0,0.00024,120]
[368259045,1751078329493,163.31335293,0.000222,69]
[368259046,1751078552480,257.53332,0.00013699,2]
[368259049,1751078639345,9017.64,0.00026113,60]
[368259050,1751078759766,163.31335292,0.000222,69]
[368259051,1751078968111,-315.09180674,0.00018246,2]
[368259128,1751079032431,-380.70819326,0.00018246,2]
[368259130,1751079032441,-349.43850587,0.00019077,2]
[368259132,1751079032451,-1944.0467738,0.00019084,2]
[368259135,1751079032462,-300.0,0.00019176,2]
[368259138,1751079032471,-300.0,0.00019176,2]
[368259140,1751079032481,-1200.0,0.00019176,2]
[368259142,1751079032490,-300.0,0.00019176,2]
[368259144,1751079032499,-20154.84051181,0.00019177,2]
[368259146,1751079032509,-500.0,0.00019177,2]
[368259148,1751079032518,-500.0,0.00019177,2]
[368259150,1751079032528,-500.0,0.00019177,2]
[368259152,1751079032537,-500.0,0.00019177,2]
[368259154,1751079032546,-500.0,0.00019177,2]
[368259156,1751079032556,-500.0,0.00019177,2]
[368259158,1751079032565,-500.0,0.00019177,2]
[368259160,1751079032575,-500.0,0.00019177,2]
[368259162,1751079032585,-207.03039959,0.00019177,2]
[368259163,1751079032594,-500.0,0.00019177,2]
[368259164,1751079032603,-500.0,0.00019177,2]
[368259166,1751079032613,-500.0,0.00019177,2]
[368259168,1751079032623,-500.0,0.00019177,2]
[368259171,1751079032632,-234.61356819,0.00019177,2]
[368259173,1751079032643,-332.21146359,0.00019177,2]
[368259174,1751079032652,-307.71938641,0.00019177,2]
[368259176,1751079032662,-302.66553457,0.00019177,2]
[368259177,1751079032671,-244.66515305,0.00019177,2]
[368259179,1751079032681,-500.0,0.00019177,2]
[368259181,1751079032690,-464.8433636,0.00019178,2]
[368259183,1751079032700,-284.61715851,0.00019178,2]
[368259184,1751079032709,-460.0,0.00019178,2]
[368259185,1751079032719,-464.31169551,0.00019178,2]
[368259187,1751079032728,-460.0,0.00019178,2]
[368259189,1751079032737,-460.0,0.00019178,2]
[368259191,1751079032747,-464.5218042,0.00019178,2]
[368259192,1751079032758,-373.89378558,0.00019178,2]
[368259193,1751079032767,-460.0,0.00019178,2]
[368259194,1751079032777,-460.0,0.00019178,2]
[368259195,1751079032786,-460.0,0.00019178,2]
[368259196,1751079032796,-460.68341722,0.00019178,2]
[368259197,1751079032806,-460.0,0.00019178,2]
[368259198,1751079032815,-460.0,0.00019178,2]
[368259199,1751079032978,-460.0,0.00019178,2]
[368259200,1751079032988,-460.0,0.00019178,2]
[368259201,1751079032999,-460.0,0.00019178,2]
[368259202,1751079033011,-460.0,0.00019178,2]
[368259203,1751079033021,-460.0,0.00019178,2]
[368259204,1751079033031,-460.85418021,0.00019178,2]
[368259205,1751079033043,-519.35,0.00019178,2]
[368259206,1751079033054,-460.0,0.00019178,2]
[368259207,1751079033065,-460.0,0.00019178,2]
[368259208,1751079033075,-460.0,0.00019178,2]
[368259209,1751079033085,-460.0,0.00019178,2]
[368259210,1751079033096,-460.0,0.00019178,2]
[368259211,1751079033106,-475.75,0.00019178,2]
[368259212,1751079033116,-183.97113883,0.00019178,2]
[368259213,1751079033125,-151.0,0.00019178,2]
[368259214,1751079033135,-151.51524228,0.00019178,2]
[368259215,1751079033145,-152.01670608,0.00019178,2]
[368259216,1751079033155,-151.27352302,0.00019178,2]
[368259217,1751079033166,-151.49149593,0.00019178,2]
[368259218,1751079033176,-152.40747196,0.00019178,2]
[368259219,1751079033186,-469.70480583,0.00019178,2]
[368259220,1751079033197,-460.0,0.00019178,2]
[368259221,1751079033207,-165.13537607,0.00019178,2]
[368259222,1751079033217,-460.0,0.00019178,2]
[368259223,1751079033226,-229.66,0.00019178,2]
[368259224,1751079033235,-460.0,0.00019178,2]
[368259225,1751079033246,-460.0,0.00019178,2]
[368259226,1751079033256,-460.0,0.00019178,2]
[368259227,1751079033265,-192.17522865,0.00019178,2]
[368259228,1751079033275,-460.0,0.00019178,2]
[368259229,1751079033285,-500.0,0.00019178,2]
[368259230,1751079033296,-460.0,0.00019178,2]
[368259231,1751079033306,-460.0,0.00019178,2]
[368259232,1751079033316,-460.0,0.00019178,2]
[368259233,1751079033326,-460.0,0.00019178,2]
[368259234,1751079033336,-460.0,0.00019178,2]
[368259235,1751079033346,-478.01038466,0.00019178,2]
[368259236,1751079033356,-460.0,0.00019178,2]
[368259237,1751079033366,-460.0,0.00019178,2]
[368259238,1751079033375,-460.0,0.00019178,2]
[368259239,1751079033384,-601.01293737,0.00019178,2]
[368259240,1751079033394,-460.0,0.00019178,2]
[368259241,1751079033404,-460.0,0.00019178,2]
[368259242,1751079033413,-460.0,0.00019178,2]
[368259243,1751079033422,-460.0,0.00019178,2]
[368259244,1751079033432,-460.0,0.00019178,2]
[368259245,1751079033442,-460.0,0.00019178,2]
[368259246,1751079033451,-460.0,0.00019178,2]
[368259247,1751079033461,-460.0,0.00019178,2]
[368259248,1751079033470,-460.0,0.00019178,2]
[368259249,1751079033480,-460.0,0.00019178,2]
[368259250,1751079033490,-313.44889633,0.00019178,2]
[368259251,1751079033500,-460.0,0.00019178,2]
[368259252,1751079033509,-460.0,0.00019178,2]
[368259253,1751079033518,-500.0,0.00019178,2]
[368259254,1751079033528,-460.0,0.00019178,2]
[368259255,1751079033537,-460.0,0.00019178,2]
[368259256,1751079033547,-460.0,0.00019178,2]
[368259257,1751079033556,-460.0,0.00019178,2]
[368259258,1751079033568,-460.0,0.00019178,2]
[368259259,1751079033578,-460.0,0.00019178,2]
[368259260,1751079033589,-460.0,0.00019178,2]
[368259261,1751079033599,-460.0,0.00019178,2]
[368259262,1751079033608,-460.0,0.00019178,2]
[368259263,1751079033618,-460.0,0.00019178,2]
[368259264,1751079033627,-460.0,0.00019178,2]
[368259265,1751079033637,-460.0,0.00019178,2]
[368259266,1751079033647,-1000.0,0.00019178,2]
[368259267,1751079033656,-460.0,0.00019178,2]
[368259268,1751079033666,-463.059324,0.00019178,2]
[368259269,1751079033676,-463.444562,0.00019178,2]
[368259270,1751079033685,-465.89998689,0.00019178,2]
[368259271,1751079033695,-460.0,0.00019178,2]
[368259272,1751079033705,-460.0,0.00019178,2]
[368259273,1751079033715,-419.64771371,0.00019178,2]
[368259274,1751079033724,-460.0,0.00019178,2]
[368259275,1751079033734,-472.04642044,0.00019178,2]
[368259276,1751079033744,-460.0,0.00019178,2]
[368259277,1751079033753,-460.0,0.00019178,2]
[368259278,1751079033763,-466.43992591,0.00019178,2]
[368259279,1751079033773,-465.94062195,0.00019178,2]
[368259280,1751079033784,-559.93099718,0.00019178,2]
[368259281,1751079033793,-460.0,0.00019178,2]
[368259282,1751079033803,-404.60494926,0.00019178,2]
[368259283,1751079033814,-460.0,0.00019178,2]
[368259284,1751079033825,-468.90993934,0.00019178,2]
[368259285,1751079033835,-460.0,0.00019178,2]
[368259286,1751079033849,-460.0,0.00019178,2]
[368259287,1751079033859,-463.23186513,0.00019178,2]
[368259288,1751079033870,-460.0,0.00019178,2]
[368259289,1751079033879,-460.0,0.00019178,2]
[368259290,1751079033889,-460.0,0.00019178,2]
[368259291,1751079033899,-463.16416492,0.00019178,2]
[368259292,1751079033908,-460.0,0.00019178,2]
[368259293,1751079033918,-460.0,0.00019178,2]
[368259294,1751079033927,-460.0,0.00019178,2]
[368259295,1751079033936,-463.56021227,0.00019178,2]
[368259296,1751079033946,-460.0,0.00019178,2]
[368259297,1751079033956,-500.0,0.00019178,2]
[368259298,1751079033967,-304.36313278,0.00019178,2]
[368259299,1751079033976,-500.0,0.00019178,2]
[368259300,1751079033986,-500.0,0.00019178,2]
[368259301,1751079033996,-500.0,0.00019178,2]
[368259302,1751079034007,-460.0,0.00019178,2]
[368259303,1751079034018,-500.0,0.00019178,2]
[368259304,1751079034027,-460.0,0.00019178,2]
[368259305,1751079034037,-460.0,0.00019178,2]
[368259306,1751079034047,-500.0,0.00019178,2]
[368259307,1751079034057,-151.0,0.00019178,2]
[368259308,1751079034066,-460.0,0.00019178,2]
[368259309,1751079034076,-151.0,0.00019178,2]
[368259310,1751079034086,-460.0,0.00019178,2]
[368259311,1751079034095,-500.0,0.00019178,2]
[368259312,1751079034105,-460.0,0.00019178,2]
[368259313,1751079034115,-151.0,0.00019178,2]
[368259314,1751079034125,-151.0,0.00019178,2]
[368259315,1751079034135,-460.0,0.00019178,2]
[368259316,1751079034146,-581.99,0.00019178,2]
[368259317,1751079034155,-460.0,0.00019178,2]
[368259318,1751079034165,-464.00105305,0.00019178,2]
[368259319,1751079034176,-460.0,0.00019178,2]
[368259320,1751079034186,-460.0,0.00019178,2]
[368259321,1751079034196,-460.0,0.00019178,2]
[368259322,1751079034206,-735.16,0.00019178,2]
[368259323,1751079034216,-460.0,0.00019178,2]
[368259324,1751079034226,-460.0,0.00019178,2]
[368259325,1751079034235,-578.0887983,0.00019178,2]
[368259326,1751079034244,-460.0,0.00019178,2]
[368259327,1751079034254,-460.13803866,0.00019178,2]
[368259328,1751079034264,-460.0,0.00019178,2]
[368259329,1751079034274,-263.16694178,0.00019178,2]
[368259330,1751079034283,-460.0,0.00019178,2]
[368259331,1751079034293,-460.0,0.00019178,2]
[368259332,1751079034302,-464.98057373,0.00019178,2]
[368259333,1751079034312,-275.59981228,0.00019178,2]
[368259334,1751079034321,-460.0,0.00019178,2]
[368259335,1751079034331,-460.0,0.00019178,2]
[368259336,1751079034340,-460.0,0.00019178,2]
[368259337,1751079034350,-460.0,0.00019178,2]
[368259338,1751079034359,-460.0,0.00019178,2]
[368259339,1751079034368,-460.0,0.00019178,2]
[368259340,1751079034379,-541.31513344,0.00019178,2]
[368259341,1751079034389,-151.0,0.00019178,2]
[368259342,1751079034399,-460.0,0.00019178,2]
[368259343,1751079034408,-461.56880274,0.00019178,2]
[368259344,1751079034418,-226.83199615,0.00019178,2]
[368259345,1751079034428,-460.0,0.00019178,2]
[368259346,1751079034437,-460.0,0.00019178,2]
[368259347,1751079034446,-460.0,0.00019178,2]
[368259348,1751079034456,-1200.56,0.00019178,2]
[368259349,1751079034465,-460.0,0.00019178,2]
[368259350,1751079034476,-460.0,0.00019178,2]
[368259351,1751079034487,-467.65958258,0.00019178,2]
[368259352,1751079034497,-460.0,0.00019178,2]
[368259353,1751079034507,-483.83277235,0.00019178,2]
[368259354,1751079034519,-899.63,0.00019178,2]
[368259355,1751079034532,-460.0,0.00019178,2]
[368259356,1751079034545,-1289.06,0.00019178,2]
[368259357,1751079034559,-464.79837109,0.00019178,2]
[368259358,1751079034571,-460.0,0.00019178,2]
[368259359,1751079034583,-467.59179641,0.00019178,2]
[368259360,1751079034595,-460.0,0.00019178,2]
[368259361,1751079034607,-478.71681133,0.00019178,2]
[368259362,1751079034618,-460.0,0.00019178,2]
[368259363,1751079034631,-462.63539668,0.00019178,2]
[368259364,1751079034644,-460.0,0.00019178,2]
[368259365,1751079034656,-460.0,0.00019178,2]
[368259366,1751079034667,-460.0,0.00019178,2]
[368259367,1751079034679,-338.23962456,0.00019178,2]
[368259368,1751079034691,-460.0,0.00019178,2]
[368259369,1751079034702,-460.0,0.00019178,2]
[368259370,1751079034717,-480.2720569,0.00019178,2]
[368259371,1751079034728,-460.0,0.00019178,2]
[368259372,1751079034740,-460.0,0.00019178,2]
[368259373,1751079034752,-460.0,0.00019178,2]
[368259374,1751079034766,-460.0,0.00019178,2]
[368259375,1751079034779,-468.83121204,0.00019178,2]
[368259376,1751079034791,-460.0,0.00019178,2]
[368259377,1751079034804,-460.0,0.00019178,2]
[368259378,1751079034817,-382.15591646,0.00019178,2]
[368259379,1751079034830,-465.46692777,0.00019178,2]
[368259380,1751079034841,-460.0,0.00019178,2]
[368259381,1751079034853,-460.0,0.00019178,2]
[368259382,1751079034866,-460.0,0.00019178,2]
[368259383,1751079034881,-460.0,0.00019178,2]
[368259384,1751079034893,-460.0,0.00019178,2]
[368259385,1751079034904,-460.0,0.00019178,2]
[368259386,1751079034915,-519.28823464,0.00019178,2]
[368259387,1751079034925,-568.88,0.00019178,2]
[368259388,1751079034934,-460.0,0.00019178,2]
[368259389,1751079034944,-460.0,0.00019178,2]
[368259390,1751079034956,-485.6,0.00019178,2]
[368259391,1751079034966,-460.0,0.00019178,2]
[368259392,1751079034978,-444.8095462,0.00019178,2]
[368259393,1751079034988,-460.0,0.00019178,2]
[368259394,1751079035001,-460.0,0.00019178,2]
[368259395,1751079035012,-460.0,0.00019178,2]
[368259396,1751079035024,-190.4181181,0.00019178,2]
[368259397,1751079035036,-460.0,0.00019178,2]
[368259398,1751079035048,-468.28814328,0.00019178,2]
[368259399,1751079035060,-460.0,0.00019178,2]
[368259400,1751079035071,-460.0,0.00019178,2]
[368259401,1751079035081,-460.0,0.00019178,2]
[368259402,1751079035094,-1201.99,0.00019178,2]
[368259403,1751079035105,-1428.89,0.00019178,2]